[Event "US Open 2021"]
[Site "Crowne Plaza Cherry Hill, United States"]
[Date "2021.08.01"]
[Round "2.8"]
[White "Starkman, Eric"]
[Black "Benjamin, Joel"]
[Result "0-1"]
[TimeControl "40/100;SD/30;+30"]
[BlackTitle "GM"]
[WhiteElo "2044"]
[BlackElo "2586"]

1. d4 {[%clk 01:40:58]} Nf6 {[%clk 01:40:54]} 2. c4 {[%clk 01:41:24]} e6 {[%clk
01:40:54]} {[%emt 00:00:17]} 3. Nc3 {[%clk 01:41:49]} {[%emt 00:00:03]} Bb4
{[%clk 01:41:17]} {[%emt 00:00:04]} 4. f3 {[%clk 01:42:14]} {[%emt 00:00:09]}
d5 {[%clk 01:35:40]} {[%emt 00:06:34]} 5. a3 {[%clk 01:42:39]} Bd6 {[%clk
01:35:49]} {[%emt 00:00:08]} 6. e4 {[%clk 01:38:01]} {[%emt 00:04:57]} c5
{[%clk 01:36:09]} {[%emt 00:00:07]} 7. cxd5 {[%clk 01:32:11]} {[%emt 00:06:18]}
cxd4 {[%clk 01:35:51]} {[%emt 00:01:15]} 8. Qxd4 {[%clk 01:08:19]} {[%emt
00:23:52]} exd5 {[%clk 01:35:37]} {[%emt 00:00:49]} 9. Bb5+ {[%clk 01:03:45]}
{[%emt 00:05:01]} Nc6 {[%clk 01:30:53]} {[%emt 00:05:14]} 10. Nge2 {[%clk
00:53:26]} {[%emt 00:10:59]} O-O {[%clk 01:27:41]} {[%emt 00:03:31]} 11. Bxc6
{[%clk 00:52:52]} {[%emt 00:01:06]} bxc6 {[%clk 01:28:02]} {[%emt 00:00:11]} 12.
exd5 {[%clk 00:50:34]} {[%emt 00:02:45]} Re8 {[%clk 01:23:27]} {[%emt
00:05:04]} 13. Bf4 {[%clk 00:44:42]} {[%emt 00:06:34]} Bxf4 {[%clk 01:23:02]}
{[%emt 00:01:17]} 14. Qxf4 {[%clk 00:45:05]} Nxd5 {[%clk 01:20:35]} {[%emt
00:02:29]} 15. Qd2 {[%clk 00:29:10]} {[%emt 00:16:26]} Qb6 {[%clk 01:01:31]}
{[%emt 00:19:53]} 16. Nxd5 {[%clk 00:20:46]} {[%emt 00:08:34]} cxd5 {[%clk
01:01:50]} {[%emt 00:00:11]} 17. O-O-O {[%clk 00:20:29]} {[%emt 00:00:47]} Bf5
{[%clk 00:59:51]} {[%emt 00:02:28]} 18. Nc3 {[%clk 00:19:38]} {[%emt 00:01:34]}
Rac8 {[%clk 00:59:53]} {[%emt 00:00:41]} 19. Rhe1 {[%clk 00:17:38]} {[%emt
00:02:17]} Rxe1 {[%clk 00:59:33]} {[%emt 00:00:48]} 20. Rxe1 {[%clk 00:11:39]}
{[%emt 00:06:22]} d4 {[%clk 00:59:13]} {[%emt 00:00:47]} 21. Qe2 {[%clk
00:10:41]} {[%emt 00:01:28]} h6 {[%clk 00:58:13]} {[%emt 00:01:30]} 22. g4
{[%clk 00:10:22]} {[%emt 00:00:59]} Bg6 {[%clk 00:57:36]} {[%emt 00:00:58]} 23.
f4 {[%clk 00:08:45]} {[%emt 00:02:47]} Rxc3+ {[%clk 00:57:49]} 0-1

[Event "US Open 2021"]
[Site "Crowne Plaza Cherry Hill, United States"]
[Date "2021.08.01"]
[Round "2.9"]
[White "Matviishen, Viktor"]
[Black "La Budde, Mike"]
[Result "1-0"]
[TimeControl "40/100;SD/30;+30"]
[WhiteTitle "IM"]
[WhiteElo "2575"]
[BlackElo "2037"]

1. d4 {[%clk 01:40:55]} {[%emt 00:00:31]} Nf6 {[%clk 01:40:09]} {[%emt
00:00:36]} 2. c4 {[%clk 01:41:19]} g6 {[%clk 01:40:06]} {[%emt 00:00:39]} 3.
Nc3 {[%clk 01:41:42]} Bg7 {[%clk 01:40:25]} {[%emt 00:00:08]} 4. e4 {[%clk
01:42:07]} {[%emt 00:00:06]} d6 {[%clk 01:40:37]} {[%emt 00:00:40]} 5. h3
{[%clk 01:42:33]} O-O {[%clk 01:39:05]} {[%emt 00:01:58]} 6. Be3 {[%clk
01:42:58]} Nc6 {[%clk 01:37:41]} {[%emt 00:01:43]} 7. d5 {[%clk 01:43:18]}
{[%emt 00:00:46]} Nb4 {[%clk 01:36:49]} {[%emt 00:00:48]} 8. a3 {[%clk
01:42:59]} {[%emt 00:01:00]} Na6 {[%clk 01:37:17]} 9. Nf3 {[%clk 01:43:07]}
{[%emt 00:00:17]} e6 {[%clk 01:36:01]} {[%emt 00:02:23]} 10. dxe6 {[%clk
01:35:10]} {[%emt 00:08:07]} fxe6 {[%clk 01:35:13]} {[%emt 00:00:59]} 11. Be2
{[%clk 01:34:40]} {[%emt 00:01:19]} e5 {[%clk 01:24:33]} {[%emt 00:11:13]} 12.
O-O {[%clk 01:33:28]} {[%emt 00:01:29]} c6 {[%clk 01:22:26]} {[%emt 00:02:34]}
13. b4 {[%clk 01:30:00]} {[%emt 00:03:51]} Qe7 {[%emt 00:02:35]} 14. c5 {[%clk
01:29:24]} dxc5 {[%clk 01:17:10]} {[%emt 00:04:42]} 15. Bxa6 {[%clk 01:29:38]}
{[%emt 00:00:23]} cxb4 {[%clk 01:16:41]} {[%emt 00:00:51]} 16. Bc4+ {[%clk
01:30:03]} {[%emt 00:00:10]} Kh8 {[%clk 01:17:03]} {[%emt 00:00:08]} 17. axb4
{[%clk 01:30:29]} {[%emt 00:00:04]} Qxb4 {[%clk 01:16:35]} {[%emt 00:00:56]} 18.
Qb3 {[%clk 01:29:54]} {[%emt 00:01:15]} Qe7 {[%clk 01:08:20]} {[%emt 00:09:26]}
19. Bxa7 {[%clk 01:19:17]} {[%emt 00:11:08]} b5 {[%clk 01:07:06]} {[%emt
00:01:07]} 20. Bc5 {[%clk 01:19:34]} Qxc5 {[%clk 01:07:25]} {[%emt 00:00:17]}
21. Rxa8 {[%clk 01:20:01]} bxc4 {[%clk 01:05:58]} {[%emt 00:01:55]} 22. Qa3
{[%clk 01:20:28]} {[%emt 00:00:04]} Qxa3 {[%clk 01:05:30]} {[%emt 00:01:00]} 23.
Rxa3 {[%clk 01:20:53]} {[%emt 00:00:03]} Nh5 {[%clk 01:05:04]} {[%emt
00:00:49]} 24. Nd2 {[%clk 01:18:04]} {[%emt 00:03:20]} Be6 {[%clk 01:02:08]}
{[%emt 00:04:31]} 25. Ra6 {[%clk 01:17:37]} Bh6 {[%clk 01:00:02]} {[%emt
00:02:49]} 26. Rd1 {[%clk 01:17:50]} {[%emt 00:00:25]} Rd8 {[%clk 00:57:01]}
{[%emt 00:03:03]} 27. Nf3 {[%clk 01:18:12]} {[%emt 00:00:17]} Rd3 {[%clk
00:56:09]} {[%emt 00:01:10]} 28. Rxd3 {[%clk 01:14:28]} {[%emt 00:05:02]} cxd3
{[%clk 00:56:35]} 29. Rxc6 {[%clk 01:14:52]} Nf4 {[%clk 00:51:10]} {[%emt
00:05:19]} 30. g3 {[%clk 01:15:14]} {[%emt 00:00:19]} Ne2+ {[%clk 00:51:35]} 31.
Nxe2 {[%clk 01:15:39]} {[%emt 00:00:11]} dxe2 {[%clk 00:51:57]} 32. Rxe6 {[%clk
01:15:59]} {[%emt 00:00:13]} 1-0

[Event "US Open 2021"]
[Site "Crowne Plaza Cherry Hill, United States"]
[Date "2021.08.01"]
[Round "2.10"]
[White "Dill, James Christopher"]
[Black "Molner, Mackenzie S"]
[Result "0-1"]
[TimeControl "40/100;SD/30;+30"]
[BlackTitle "GM"]
[WhiteElo "2027"]
[BlackElo "2517"]

1. d4 {[%clk 01:40:56]} f5 {[%clk 01:40:55]} {[%emt 00:00:12]} 2. Nf3 {[%clk
01:41:18]} Nf6 {[%clk 01:41:20]} 3. g3 {[%clk 01:41:38]} {[%emt 00:00:16]} e6
{[%clk 01:41:42]} {[%emt 00:00:28]} 4. Bg2 {[%clk 01:41:57]} d5 {[%clk
01:42:01]} 5. O-O {[%clk 01:41:57]} {[%emt 00:00:51]} Bd6 {[%clk 01:42:17]} 6.
c4 {[%clk 01:40:45]} {[%emt 00:01:29]} O-O {[%clk 01:42:19]} {[%emt 00:00:30]}
7. b3 {[%clk 01:40:39]} {[%emt 00:00:34]} b6 {[%clk 01:42:12]} {[%emt
00:00:40]} 8. Ba3 {[%clk 01:37:02]} {[%emt 00:04:06]} Bb7 {[%clk 01:42:30]}
{[%emt 00:00:30]} 9. Bxd6 {[%clk 01:34:13]} {[%emt 00:03:12]} cxd6 {[%clk
01:42:50]} {[%emt 00:00:04]} 10. Nc3 {[%clk 01:31:47]} {[%emt 00:02:50]} Nbd7
{[%clk 01:38:27]} {[%emt 00:04:57]} 11. Rc1 {[%clk 01:26:50]} {[%emt 00:05:26]}
Qe7 {[%clk 01:27:28]} {[%emt 00:11:33]} 12. Nd2 {[%clk 01:16:08]} {[%emt
00:11:07]} Rac8 {[%clk 01:25:53]} {[%emt 00:02:02]} 13. cxd5 {[%clk 01:05:58]}
{[%emt 00:10:48]} exd5 {[%clk 01:26:06]} {[%emt 00:00:34]} 14. e3 {[%clk
01:04:23]} {[%emt 00:02:19]} Ne4 {[%clk 01:24:06]} {[%emt 00:02:06]} 15. Ndxe4
{[%clk 01:01:39]} {[%emt 00:03:03]} dxe4 {[%clk 01:23:09]} {[%emt 00:01:39]} 16.
Qe2 {[%clk 00:59:11]} {[%emt 00:02:41]} Nf6 {[%clk 01:14:15]} {[%emt 00:09:48]}
17. Rc2 {[%clk 00:54:52]} {[%emt 00:05:09]} d5 {[%clk 00:45:05]} {[%emt
00:29:35]} 18. Rfc1 {[%clk 00:52:53]} {[%emt 00:02:13]} a6 {[%clk 00:41:09]}
{[%emt 00:04:13]} 19. Qd2 {[%clk 00:40:15]} {[%emt 00:13:12]} g5 {[%clk
00:39:18]} {[%emt 00:02:27]} 20. Na4 {[%clk 00:38:08]} {[%emt 00:03:02]} Qd6
{[%clk 00:38:23]} {[%emt 00:01:20]} 21. Rxc8 {[%clk 00:27:07]} {[%emt
00:10:49]} Rxc8 {[%clk 00:36:47]} {[%emt 00:02:52]} 22. Rxc8+ {[%clk 00:26:18]}
{[%emt 00:00:37]} Bxc8 {[%clk 00:37:12]} {[%emt 00:00:16]} 23. Bf1 {[%clk
00:24:24]} {[%emt 00:03:33]} h5 {[%clk 00:34:25]} {[%emt 00:02:13]} 24. Qc3
{[%clk 00:22:00]} {[%emt 00:02:59]} Bb7 {[%clk 00:33:45]} {[%emt 00:00:48]} 25.
b4 {[%clk 00:19:36]} {[%emt 00:03:31]} Kf7 {[%clk 00:30:03]} {[%emt 00:03:59]}
26. Nb2 {[%clk 00:18:52]} {[%emt 00:00:55]} h4 {[%clk 00:29:07]} {[%emt
00:02:11]} 27. a4 {[%clk 00:13:02]} {[%emt 00:05:28]} hxg3 {[%clk 00:17:36]}
{[%emt 00:12:00]} 28. hxg3 {[%clk 00:13:11]} {[%emt 00:00:26]} f4 {[%clk
00:13:59]} {[%emt 00:04:16]} 29. gxf4 {[%clk 00:10:17]} {[%emt 00:03:19]} gxf4
{[%clk 00:14:13]} {[%emt 00:00:07]} 30. exf4 {[%clk 00:08:50]} {[%emt
00:02:41]} Qxf4 {[%clk 00:14:36]} 31. Bh3 {[%clk 00:07:44]} {[%emt 00:01:03]}
Qd6 {[%clk 00:09:59]} {[%emt 00:05:32]} 32. a5 {[%clk 00:06:36]} {[%emt
00:01:28]} bxa5 {[%clk 00:06:24]} {[%emt 00:03:45]} 33. bxa5 {[%clk 00:06:57]}
{[%emt 00:00:44]} Bc6 {[%clk 00:06:45]} 34. Nd1 {[%clk 00:05:41]} {[%emt
00:01:32]} Nh5 {[%clk 00:04:46]} {[%emt 00:02:18]} 35. Ne3 {[%clk 00:03:33]}
{[%emt 00:02:40]} Nf4 {[%clk 00:04:49]} {[%emt 00:00:33]} 36. Bg4 {[%clk
00:02:42]} {[%emt 00:01:12]} Bd7 {[%clk 00:04:10]} {[%emt 00:01:33]} 37. Kf1
{[%clk 00:01:45]} {[%emt 00:01:42]} Qh6 {[%clk 00:02:21]} {[%emt 00:01:54]} 38.
Ke1 {[%clk 00:01:43]} {[%emt 00:00:23]} Qh1+ {[%clk 00:02:38]} {[%emt
00:00:09]} 39. Kd2 {[%clk 00:02:04]} {[%emt 00:00:18]} Qg1 {[%clk 00:01:01]}
{[%emt 00:03:43]} 40. Bxd7 {[%clk 00:30:34]} {[%emt 00:00:20]} Qxf2+ {[%clk
00:31:24]} {[%emt 00:00:05]} 41. Kd1 {[%clk 00:28:21]} {[%emt 00:02:40]} Qe2+
{[%clk 00:30:20]} {[%emt 00:01:44]} 42. Kc1 {[%clk 00:28:43]} Nd3+ {[%clk
00:30:42]} {[%emt 00:00:19]} 43. Kb1 {[%clk 00:29:05]} Qxe3 {[%clk 00:30:57]}
{[%emt 00:00:40]} 44. Bc8 {[%clk 00:23:53]} {[%emt 00:05:22]} Qg1+ {[%clk
00:30:59]} {[%emt 00:00:21]} 45. Ka2 {[%clk 00:24:00]} {[%emt 00:00:31]} Qh2+
{[%clk 00:29:46]} {[%emt 00:01:46]} 46. Ka3 {[%clk 00:24:10]} {[%emt 00:00:28]}
Qd6+ {[%clk 00:29:28]} {[%emt 00:00:41]} 47. Ka4 {[%clk 00:21:23]} {[%emt
00:03:05]} Kf6 {[%clk 00:13:50]} {[%emt 00:16:44]} 48. Kb3 {[%clk 00:16:51]}
{[%emt 00:04:55]} Qb8+ {[%clk 00:13:11]} {[%emt 00:01:12]} 49. Ka3 {[%clk
00:16:01]} {[%emt 00:00:44]} Qb5 {[%clk 00:12:44]} {[%emt 00:01:36]} 50. Bg4
{[%clk 00:13:56]} {[%emt 00:01:56]} Kg5 {[%clk 00:07:26]} {[%emt 00:06:38]} 51.
Be2 {[%clk 00:13:09]} {[%emt 00:00:38]} Qc4 {[%clk 00:07:19]} {[%emt 00:00:41]}
52. Qd2+ {[%clk 00:09:52]} {[%emt 00:03:35]} Kg6 {[%clk 00:04:15]} {[%emt
00:04:11]} 53. Bf1 {[%clk 00:05:23]} {[%emt 00:04:20]} Qxd4 {[%clk 00:04:16]}
{[%emt 00:00:43]} 54. Qg2+ {[%clk 00:05:37]} {[%emt 00:00:04]} Kf6 {[%clk
00:04:27]} {[%emt 00:00:16]} 55. Bxd3 {[%clk 00:05:50]} {[%emt 00:00:37]} Qxd3+
{[%emt 00:00:59]} 0-1

[Event "US Open 2021"]
[Site "Crowne Plaza Cherry Hill, United States"]
[Date "2021.08.01"]
[Round "2.11"]
[White "Schmakel, Samuel Arthur"]
[Black "Nair, Siddhant"]
[Result "1-0"]
[TimeControl "40/100;SD/30;+30"]
[WhiteTitle "GM"]
[WhiteElo "2488"]
[BlackElo "2026"]

1. e4 {[%clk 01:40:56]} {[%emt 00:00:32]} c5 {[%clk 01:40:20]} {[%emt
00:00:35]} 2. Nf3 {[%clk 01:41:08]} d6 {[%clk 01:40:19]} {[%emt 00:00:28]} 3.
d4 {[%clk 01:41:25]} {[%emt 00:00:17]} cxd4 {[%clk 01:40:24]} {[%emt 00:00:37]}
4. Nxd4 {[%clk 01:41:48]} {[%emt 00:00:14]} Nf6 {[%clk 01:39:06]} {[%emt
00:01:24]} 5. Nc3 {[%clk 01:42:09]} {[%emt 00:00:36]} g6 {[%clk 01:39:33]} 6.
Be3 {[%clk 01:42:07]} {[%emt 00:00:08]} Bg7 {[%clk 01:39:58]} {[%emt 00:00:36]}
7. f3 {[%clk 01:42:22]} {[%emt 00:00:19]} Nc6 {[%clk 01:40:24]} 8. Qd2 {[%clk
01:42:42]} O-O {[%clk 01:40:48]} 9. Bc4 {[%clk 01:42:53]} {[%emt 00:00:21]} Bd7
{[%clk 01:41:14]} 10. O-O-O {[%clk 01:43:04]} {[%emt 00:00:18]} Rc8 {[%clk
01:41:41]} 11. Bb3 {[%clk 01:43:10]} {[%emt 00:00:38]} Ne5 {[%clk 01:42:07]}
{[%emt 00:00:08]} 12. Kb1 {[%clk 01:41:12]} {[%emt 00:01:59]} Nc4 {[%clk
01:42:32]} {[%emt 00:00:10]} 13. Bxc4 {[%clk 01:41:36]} {[%emt 00:00:05]} Rxc4
{[%clk 01:42:58]} {[%emt 00:00:03]} 14. g4 {[%clk 01:39:33]} {[%emt 00:02:55]}
b5 {[%clk 01:43:23]} 15. h4 {[%clk 01:32:11]} {[%emt 00:07:33]} h5 {[%clk
01:42:18]} {[%emt 00:01:59]} 16. gxh5 {[%clk 01:20:07]} {[%emt 00:12:09]} Nxh5
{[%clk 01:42:47]} {[%emt 00:00:32]} 17. Nce2 {[%clk 01:20:08]} Kh7 {[%clk
01:34:51]} {[%emt 00:08:23]} 18. Rdg1 {[%clk 01:16:00]} {[%emt 00:04:38]} Rh8
{[%clk 01:25:03]} {[%emt 00:10:18]} 19. Ng3 {[%clk 01:12:53]} {[%emt 00:03:36]}
Kg8 {[%clk 01:17:53]} {[%emt 00:07:47]} 20. Nxh5 {[%clk 01:08:15]} {[%emt
00:05:09]} Rxh5 {[%clk 01:18:04]} {[%emt 00:00:37]} 21. Ne2 {[%clk 01:08:23]}
b4 {[%clk 01:00:32]} {[%emt 00:18:47]} 22. Nf4 {[%clk 00:52:58]} {[%emt
00:15:06]} Ra5 {[%clk 00:54:07]} {[%emt 00:07:42]} 23. h5 {[%clk 00:52:34]}
{[%emt 00:00:19]} Ba4 {[%clk 00:38:49]} {[%emt 00:16:55]} 24. b3 {[%clk
00:42:20]} {[%emt 00:09:35]} Bb5 {[%clk 00:31:39]} {[%emt 00:07:42]} 25. hxg6
{[%clk 00:40:19]} {[%emt 00:02:32]} f5 {[%clk 00:29:44]} {[%emt 00:02:39]} 26.
Qd5+ {[%clk 00:40:28]} {[%emt 00:00:04]} 1-0

[Event "US Open 2021"]
[Site "Crowne Plaza Cherry Hill, United States"]
[Date "2021.08.01"]
[Round "2.12"]
[White "Panda, Asish"]
[Black "Burnett, Ronald Wayne"]
[Result "0-1"]
[TimeControl "40/100;SD/30;+30"]
[WhiteElo "2026"]
[BlackElo "2397"]

1. e4 {[%clk 01:40:57]} {[%emt 00:00:14]} g6 {[%clk 01:38:22]} {[%emt
00:02:28]} 2. d4 {[%clk 01:40:51]} {[%emt 00:01:08]} c6 {[%clk 01:38:44]} 3. c4
{[%clk 01:39:54]} {[%emt 00:01:09]} d5 {[%clk 01:38:21]} {[%emt 00:00:56]} 4.
Nc3 {[%clk 01:38:48]} {[%emt 00:01:26]} dxe4 {[%clk 01:36:58]} {[%emt
00:02:19]} 5. Nxe4 {[%clk 01:39:09]} Nh6 {[%clk 01:36:46]} {[%emt 00:00:31]} 6.
Nf3 {[%clk 01:36:43]} {[%emt 00:03:17]} Bg7 {[%clk 01:36:07]} {[%emt 00:00:45]}
7. Be2 {[%clk 01:29:15]} {[%emt 00:08:16]} Nf5 {[%clk 01:30:02]} {[%emt
00:06:47]} 8. Be3 {[%clk 01:27:27]} {[%emt 00:01:52]} Na6 {[%clk 01:26:07]}
{[%emt 00:04:23]} 9. O-O {[%clk 01:19:39]} {[%emt 00:08:12]} O-O {[%clk
01:23:27]} {[%emt 00:03:34]} 10. Qd2 {[%clk 01:18:45]} {[%emt 00:01:00]} c5
{[%clk 01:22:44]} {[%emt 00:01:12]} 11. Rad1 {[%emt 00:10:54]} cxd4 {[%clk
01:20:02]} {[%emt 00:00:18]} 12. Nxd4 {[%clk 01:06:22]} {[%emt 00:05:31]} Nxe3
{[%clk 01:15:18]} {[%emt 00:05:43]} 13. Qxe3 {[%clk 01:06:19]} {[%emt
00:00:04]} Qb6 {[%clk 01:10:40]} {[%emt 00:05:12]} 14. b3 {[%clk 01:04:10]}
{[%emt 00:02:26]} Bd7 {[%clk 01:03:45]} {[%emt 00:07:58]} 15. Bf3 {[%clk
00:48:29]} {[%emt 00:15:48]} Nb4 {[%clk 00:49:09]} {[%emt 00:14:56]} 16. a3
{[%clk 00:43:24]} {[%emt 00:05:52]} Nc6 {[%clk 00:48:00]} {[%emt 00:02:07]} 17.
Nxc6 {[%clk 00:42:51]} {[%emt 00:00:21]} Bxc6 {[%clk 00:48:19]} {[%emt
00:00:11]} 18. Qxb6 {[%clk 00:42:20]} {[%emt 00:01:20]} axb6 {[%clk 00:48:39]}
19. a4 {[%clk 00:42:45]} Rfd8 {[%clk 00:48:40]} {[%emt 00:00:29]} 20. Rfe1
{[%clk 00:37:22]} {[%emt 00:06:01]} h6 {[%clk 00:48:15]} {[%emt 00:01:20]} 21.
Ng3 {[%clk 00:35:53]} {[%emt 00:01:19]} Bxf3 {[%clk 00:44:09]} {[%emt
00:04:35]} 22. gxf3 {[%clk 00:35:25]} {[%emt 00:00:59]} e6 {[%clk 00:44:25]}
{[%emt 00:00:23]} 23. Ne4 {[%clk 00:29:18]} {[%emt 00:06:40]} Be5 {[%clk
00:41:39]} {[%emt 00:03:15]} 24. c5 {[%clk 00:25:21]} {[%emt 00:04:57]} bxc5
{[%clk 00:22:06]} {[%emt 00:19:37]} 25. Nxc5 {[%clk 00:22:12]} {[%emt
00:04:14]} Bd4 {[%clk 00:20:02]} {[%emt 00:02:41]} 26. Rc1 {[%clk 00:17:11]}
{[%emt 00:05:02]} Rd5 {[%clk 00:19:17]} {[%emt 00:00:45]} 27. Nd3 {[%clk
00:13:33]} {[%emt 00:04:53]} Rad8 {[%clk 00:17:56]} {[%emt 00:01:07]} 28. Rc7
{[%clk 00:12:34]} {[%emt 00:01:42]} Bf6 {[%clk 00:15:08]} {[%emt 00:03:44]} 29.
Nf4 {[%clk 00:11:05]} {[%emt 00:01:41]} R5d7 {[%clk 00:13:16]} {[%emt
00:02:03]} 30. Rec1 {[%clk 00:09:21]} {[%emt 00:02:38]} Rxc7 {[%clk 00:07:52]}
{[%emt 00:05:54]} 31. Rxc7 {[%clk 00:09:47]} Rd4 {[%clk 00:08:13]} {[%emt
00:00:18]} 32. Nxe6 {[%clk 00:06:13]} {[%emt 00:03:33]} fxe6 {[%clk 00:08:33]}
{[%emt 00:00:51]} 33. Rxb7 {[%clk 00:06:33]} Rd2 {[%clk 00:08:37]} 34. Rb6
{[%clk 00:04:34]} {[%emt 00:02:24]} Kf7 {[%clk 00:08:09]} {[%emt 00:01:05]} 35.
Rb7+ {[%clk 00:04:44]} {[%emt 00:01:18]} Ke8 {[%clk 00:08:21]} 36. Rb8+ {[%clk
00:04:27]} {[%emt 00:00:03]} Kd7 {[%clk 00:08:29]} {[%emt 00:00:28]} 37. Rb7+
{[%clk 00:04:19]} {[%emt 00:01:03]} Kc6 {[%clk 00:08:47]} 38. Rh7 {[%clk
00:04:31]} h5 {[%clk 00:08:04]} {[%emt 00:01:09]} 39. Rh6 {[%clk 00:04:44]}
{[%emt 00:00:37]} Bd4 {[%clk 00:08:23]} 40. Rxg6 {[%clk 00:34:41]} {[%emt
00:00:24]} Kd6 {[%clk 00:38:05]} {[%emt 00:00:47]} 41. Kg2 {[%clk 00:33:21]}
{[%emt 00:01:51]} Rxf2+ {[%clk 00:37:39]} {[%emt 00:00:58]} 42. Kg3 {[%clk
00:33:44]} {[%emt 00:00:18]} Rb2 {[%clk 00:37:44]} {[%emt 00:00:16]} 43. Rh6
{[%clk 00:33:36]} {[%emt 00:00:35]} Be5+ {[%clk 00:38:02]} {[%emt 00:00:13]} 44.
Kh4 {[%clk 00:33:54]} {[%emt 00:00:11]} Bf4 {[%clk 00:38:08]} {[%emt 00:00:22]}
45. Rxh5 {[%clk 00:34:02]} {[%emt 00:00:24]} Rxh2+ {[%clk 00:38:29]} {[%emt
00:00:13]} 46. Kg4 {[%clk 00:34:29]} {[%emt 00:00:04]} Rxh5 {[%clk 00:36:48]}
{[%emt 00:02:30]} 47. Kxh5 {[%clk 00:34:56]} Bd2 {[%clk 00:34:02]} {[%emt
00:03:34]} 48. Kg4 {[%clk 00:32:56]} {[%emt 00:02:21]} Ke5 {[%clk 00:34:08]}
{[%emt 00:00:03]} 49. Kg3 {[%clk 00:32:36]} {[%emt 00:01:15]} Kd4 {[%clk
00:32:19]} {[%emt 00:02:06]} 50. Kf2 {[%clk 00:32:49]} Bc3 {[%clk 00:30:18]}
{[%emt 00:02:58]} 51. Ke2 {[%clk 00:31:41]} {[%emt 00:01:19]} Ba5 {[%clk
00:30:33]} {[%emt 00:00:14]} 52. Kf2 {[%clk 00:31:38]} {[%emt 00:00:25]} Ke5
{[%clk 00:20:23]} {[%emt 00:11:43]} 53. Ke3 {[%clk 00:30:55]} {[%emt 00:00:20]}
Kf5 {[%clk 00:20:44]} 54. Ke2 {[%clk 00:30:26]} {[%emt 00:01:18]} Kf4 {[%clk
00:21:06]} {[%emt 00:00:28]} 55. Kf2 {[%clk 00:30:40]} Bb4 {[%clk 00:21:07]}
{[%emt 00:00:50]} 56. Ke2 {[%clk 00:30:34]} e5 {[%clk 00:20:18]} {[%emt
00:01:05]} 57. Kf2 {[%clk 00:30:49]} {[%emt 00:00:15]} Bc3 {[%clk 00:20:41]}
{[%emt 00:00:36]} 58. Ke2 {[%clk 00:31:00]} {[%emt 00:00:22]} Ba5 {[%clk
00:21:06]} 59. Kf2 {[%clk 00:31:12]} Bb4 {[%clk 00:21:31]} 60. Ke2 {[%clk
00:31:26]} {[%emt 00:00:52]} Bc5 {[%clk 00:21:58]} 61. a5 {[%clk 00:31:40]} Bb4
{[%clk 00:22:24]} 62. a6 {[%clk 00:31:57]} Bc5 {[%clk 00:22:51]} 63. b4 {[%clk
00:31:50]} {[%emt 00:00:36]} Ba7 {[%clk 00:23:16]} {[%emt 00:00:31]} 64. b5
{[%clk 00:32:00]} Bb6 {[%clk 00:23:29]} {[%emt 00:01:14]} 65. Kd3 {[%clk
00:32:17]} Kxf3 {[%clk 00:23:53]} 66. Kc4 {[%clk 00:32:35]} Ke4 {[%clk
00:24:10]} 67. Kc3 {[%clk 00:32:39]} {[%emt 00:00:33]} Kd5 {[%clk 00:24:29]}
{[%emt 00:00:09]} 68. Kd3 {[%clk 00:33:00]} e4+ {[%clk 00:24:49]} 0-1